fUST/lending_fUST_20250813
["ID","MTS","AMOUNT","RATE_DAILY","PERIOD"]
[378811395,1755033040456,-283.9952991,0.00019178,2]
[378811396,1755033040468,-200.0,0.00019301,15]
[378811397,1755033040478,-200.0,0.00019301,15]
[378811398,1755033040487,-200.0,0.00019301,15]
[378811399,1755033040497,-200.0,0.00019301,15]
[378811400,1755033040506,-661.88094907,0.00019763,2]
[378811401,1755033040516,-2000.0,0.00019772,2]
[378811402,1755033040525,-583.226493,0.00019863,2]
[378811403,1755033040535,-160.0,0.00019885,2]
[378811404,1755033040544,-42860.06037574,0.000199,2]
[378811405,1755033040553,-160.0,0.0002,3]
[378811406,1755033040562,-169.19899,0.00020187,2]
[378811407,1755033040572,-420.0,0.00020627,2]
[378811408,1755033040581,-461.76100612,0.00020754,2]
[378811409,1755033040591,-216.70963917,0.00020754,2]
[378811410,1755033040600,-160.0,0.00020754,2]
[378811411,1755033040610,-160.0,0.00020754,2]
[378811412,1755033040619,-160.0,0.00020754,2]
[378811413,1755033040629,-232.0176383,0.00020754,2]
[378811414,1755033040638,-215.52532928,0.00020754,2]
[378811415,1755033040648,-843.25559725,0.00020756,2]
[378811416,1755033040658,-528.03329096,0.00020756,2]
[378811417,1755033040668,-417.15472785,0.00020756,2]
[378811418,1755033040678,-160.0,0.00020756,2]
[378811419,1755033040688,-160.0,0.00020756,2]
[378811420,1755033040698,-661.88094902,0.00021072,2]
[378811421,1755033040707,-434.856,0.00021088,2]
[378811422,1755033040718,-200.0,0.00021195,15]
[378811423,1755033040729,-200.0,0.00021195,15]
[378811424,1755033040739,-200.0,0.00021195,15]
[378811425,1755033040748,-200.0,0.00021195,15]
[378811426,1755033040757,-320.0,0.00021195,15]
[378811427,1755033040767,-528.03329096,0.00021645,10]
[378811428,1755033040776,-215.52532928,0.00021645,10]
[378811429,1755033040785,-5669.77,0.00021645,10]
[378811430,1755033040794,-246.226,0.00021651,2]
[378811431,1755033040804,-2151.0,0.00021651,2]
[378811432,1755033040815,-636.0,0.00021651,2]
[378811433,1755033040824,-971.0,0.00021651,2]
[378811434,1755033040833,-42860.06037568,0.00021655,2]
[378811435,1755033040842,-500.0,0.00021917,2]
[378811436,1755033040852,-915.44,0.00022,2]
[378811437,1755033040861,-184.0,0.00022,2]
[378811438,1755033040870,-281.94,0.00022,2]
[378811439,1755033040880,-932.0,0.000223,2]
[378811440,1755033040889,-250.0,0.000223,10]
[378811441,1755033040898,-661.88094902,0.0002238,2]
[378811442,1755033040907,-441.419561,0.000224,10]
[378811443,1755033040917,-587.0,0.00022486,2]
[378811444,1755033040927,-2200.0,0.00022531,2]
[378811445,1755033040936,-500.0,0.00022626,8]
[378811446,1755033040945,-160.0,0.00023,2]
[378811447,1755033040955,-184.0,0.00023014,7]
[378811448,1755033040964,-200.0,0.00023274,15]
[378811449,1755033040973,-200.0,0.00023274,15]
[378811450,1755033040983,-200.0,0.00023274,15]
[378811451,1755033040992,-200.0,0.00023274,15]
[378811452,1755033041002,-200.0,0.00023274,15]
[378811453,1755033041011,-200.0,0.00023274,15]
[378811454,1755033041020,-366.0,0.00023274,15]
[378811455,1755033041029,-583.226493,0.00023288,2]
[378811456,1755033041039,-190.94114085,0.0002337,10]
[378811457,1755033041048,-199.94212665,0.000234,2]
[378811458,1755033041058,-42860.06037568,0.00023409,2]
[378811459,1755033041067,-2807.56,0.000235,7]
[378811460,1755033041077,-160.0,0.00023642,2]
[378811461,1755033041087,-661.88094902,0.00023689,2]
[378811462,1755033041097,-292.849,0.000238,5]
[378811463,1755033041106,-359.77743722,0.00023899,2]
[378811464,1755033041116,-190.01154749,0.00023899,2]
[378811465,1755033041125,-1430.95182748,0.000239,2]
[378811466,1755033041135,-55876.76235605,0.0002399,2]
[378811467,1755033041144,-160.0,0.00024,10]
[378811468,1755033041153,-160.0,0.00024,10]
[378811469,1755033041163,-27276.14322387,0.00024,7]
[378811470,1755033041177,-6640.63677613,0.00024,7]
[378811471,1755033041187,-6560.06,0.00024,7]
[378811472,1755033041196,-160.0,0.00024,7]
[378811473,1755033041207,-216.70963917,0.00024,7]
[378811474,1755033041216,-216.70963917,0.00024,10]
[378811475,1755033041225,-160.0,0.00024,7]
[378811476,1755033041234,-160.0,0.00024,10]
[378811477,1755033041243,-528.03329096,0.00024,7]
[378811478,1755033041252,-843.25559725,0.00024,7]
[378811479,1755033041261,-843.25559725,0.00024,10]
[378811480,1755033041270,-417.15472785,0.00024,7]
[378811481,1755033041279,-232.0176383,0.00024,7]
[378811482,1755033041289,-215.52532928,0.00024,7]
[378811483,1755033041303,-160.0,0.00024,7]
[378811484,1755033041312,-160.0,0.00024,10]
[378811485,1755033041322,-260.0,0.0002419,2]
[378811486,1755033041331,-823.0,0.00024511,2]
[378811487,1755033041340,-2151.0,0.00024651,2]
[378811488,1755033041350,-636.0,0.00024651,2]
[378811489,1755033041359,-971.0,0.00024651,2]
[378811490,1755033041369,-500.0,0.00024657,4]
[378811491,1755033041379,-200.0,0.00024658,15]
[378811492,1755033041388,-380.0,0.00024658,2]
[378811493,1755033041397,-360.0,0.00024738,2]
[378811494,1755033041407,-160.0,0.000248,3]
[378811495,1755033041416,-160.0,0.000248,3]
[378811496,1755033041425,-160.0,0.000248,3]
[378811497,1755033041435,-12368.00401267,0.000248,3]
[378811498,1755033041446,-366.0670543,0.000248,3]
[378811499,1755033041462,-359.50100004,0.00024088,2]
[378811500,1755033041473,-48.49899996,0.00024088,2]
[378811501,1755033041482,-479.23101712,0.000248,3]
[378811562,1755033043276,-3465.24,0.00021654,2]
[378811564,1755033043286,-2754.47086446,0.00024393,4]
[378811625,1755033046176,-417.879,0.00021088,2]
[378811627,1755033046186,-408.0,0.00024088,2]
[378811629,1755033046195,-710.76913554,0.00024393,4]
[378811631,1755033046204,-559.95690546,0.000248,3]
[378811633,1755033046216,-1213.04976469,0.000248,3]
[378811648,1755033046345,-596.48208102,0.000248,3]
[378812585,1755033684705,3000.0,0.00030136,120]
[378812587,1755033837561,173.882648,0.00013699,2]
[378812648,1755034232322,-300.0,0.00018979,2]
[378812649,1755034232332,-107.7187962,0.0001898,2]
[378812691,1755034238194,-192.2812038,0.0001898,2]
[378812693,1755034238203,-300.0,0.0001898,2]
[378812695,1755034238212,-300.0,0.0001898,2]
[378812697,1755034238221,-300.0,0.0001898,2]
[378812699,1755034238231,-1200.0,0.0001898,2]
[378812701,1755034238240,-4280.05389226,0.00018981,2]
[378812704,1755034238251,-20619.94610774,0.00018981,2]
[378812706,1755034238260,-5000.0,0.00019178,2]
[378812708,1755034238269,-229.44759442,0.00019178,2]
[378812710,1755034238279,-500.0,0.00019328,2]
[378812712,1755034238288,-368.76605092,0.00019328,2]
[378812714,1755034238297,-500.0,0.00019328,2]
[378812716,1755034238306,-500.0,0.00019328,2]
[378812718,1755034238314,-500.0,0.00019328,2]
[378812720,1755034238323,-191.98236594,0.00019328,2]
[378812722,1755034238333,-500.0,0.00019328,2]
[378812724,1755034238341,-500.0,0.00019328,2]
[378812727,1755034238350,-500.0,0.00019328,2]
[378812729,1755034238359,-336.76610337,0.00019328,2]
[378812731,1755034238368,-500.0,0.00019328,2]
[378812733,1755034238377,-500.0,0.00019328,2]
[378812735,1755034238386,-217.48515182,0.00019328,2]
[378812737,1755034238395,-279.69735083,0.00019328,2]
[378812739,1755034238404,-500.0,0.00019328,2]
[378812741,1755034238414,-100000.0,0.00019329,2]
[378812743,1755034238423,-1163.23764824,0.00019803,2]
[378812745,1755034238432,-439.663048,0.00019863,2]
[378812746,1755034238441,-45625.74694062,0.000199,2]
[378812748,1755034238450,-193.7,0.00019903,3]
[378812750,1755034238459,-581.12,0.00019903,3]
[378812753,1755034238469,-406.0345363,0.00019912,2]
[378812770,1755034238619,-214.44160359,0.00019912,2]
[378812773,1755034238636,-334546.99891591,0.00019913,2]
[378812775,1755034238648,-160.0,0.0002,3]
[378812777,1755034238658,-173.882648,0.00020187,2]
[378812779,1755034238667,-200.0,0.00020297,15]
[378812781,1755034238677,-200.0,0.00020297,15]
[378812783,1755034238686,-200.0,0.00020297,15]
[378812785,1755034238695,-200.0,0.00020297,15]
[378812787,1755034238704,-200.0,0.00020297,15]
[378812789,1755034238714,-420.0,0.00020688,2]
[378812791,1755034238725,-214.0,0.00020689,2]
[378812793,1755034238734,-1163.23764824,0.00020694,2]
[378812795,1755034238744,-151.0,0.000207,4]
[378812797,1755034238753,-500.0,0.00020753,2]
[378812799,1755034238762,-461.76100612,0.00020754,2]
[378812801,1755034238771,-215.52532928,0.00020754,2]
[378812803,1755034238781,-216.70963917,0.00020754,2]
[378812805,1755034238790,-160.0,0.00020754,2]
[378812807,1755034238799,-843.25559725,0.00020754,2]
[378812809,1755034238809,-417.15472785,0.00020754,2]
[378812810,1755034238818,-160.0,0.00020754,2]
[378812813,1755034238828,-160.0,0.00020754,2]
[378812815,1755034238838,-160.0,0.00020754,2]
[378812816,1755034238847,-160.0,0.00020754,2]
[378812818,1755034238855,-160.0,0.00020772,2]
[378812820,1755034238865,-160.0,0.00020772,2]
[378812822,1755034238875,-160.0,0.00020772,2]
[378812825,1755034238884,-160.0,0.00020772,2]
[378812827,1755034238894,-160.0,0.00020772,2]
[378812829,1755034238903,-528.03329096,0.00020774,2]
[378812831,1755034238912,-12673.43806534,0.00020774,2]
[378812833,1755034238921,-1680.0,0.00020789,2]
[378812835,1755034238931,-500.0,0.000208,2]
[378812837,1755034238940,-451.66015152,0.000208,2]
[378812839,1755034238949,-225.87216871,0.000208,2]
[378812841,1755034238958,-209.01178275,0.000208,2]
[378812843,1755034238967,-500.0,0.000208,2]
[378812845,1755034238977,-505.1922163,0.000208,2]
[378812847,1755034238988,-500.0,0.000208,2]
[378812849,1755034238998,-500.0,0.000208,2]
[378812851,1755034239007,-500.0,0.000208,2]
[378812853,1755034239016,-500.0,0.000208,2]
[378812855,1755034239025,-417.15472785,0.0002099,10]
[378812857,1755034239034,-774.8,0.0002099,3]
[378812859,1755034239045,-387.4,0.0002099,3]
[378812861,1755034239054,-37964.89927049,0.00021,2]
[378812863,1755034239063,-500.0,0.00021027,2]
[378812865,1755034239073,-160.0,0.00021088,2]
[378812867,1755034239082,-500.0,0.000211,2]
[378812869,1755034239091,-500.0,0.000211,2]
[378812871,1755034239101,-500.0,0.000211,2]
[378812873,1755034239110,-500.0,0.000211,2]
[378812875,1755034239120,-151.0,0.000211,3]
[378812877,1755034239129,-500.0,0.000211,2]
[378812879,1755034239138,-500.0,0.000211,2]
[378812881,1755034239147,-500.0,0.000211,2]
[378812883,1755034239156,-5000.0,0.00021237,2]
[378812885,1755034239165,-387.4,0.00021273,3]
[378812887,1755034239174,-500.0,0.00021301,2]
[378812889,1755034239184,-500.0,0.00021348,2]
[378812891,1755034239192,-1000.0,0.00021348,2]
[378812893,1755034239201,-500.0,0.00021348,2]
[378812895,1755034239211,-3505.5,0.00021459,2]
[378812897,1755034239221,-215.52532928,0.0002148,10]
[378812899,1755034239230,-66429.90938453,0.000215,2]
[378812903,1755034239258,-500.0,0.00019328,2]
[378812905,1755034239266,-532.21502357,0.00019328,2]
[378812907,1755034239275,-500.0,0.00019328,2]
[378812909,1755034239284,-2659.69257648,0.000215,2]
[378813713,1755034246822,-500.0,0.00019328,2]
[378813716,1755034246832,-500.0,0.00019328,2]
[378813718,1755034246842,-500.0,0.00019328,2]
[378813720,1755034246852,-232.0176383,0.00020754,2]
[378813722,1755034246862,-461.76100612,0.00020754,2]
[378813723,1755034246871,-8171.66,0.0002149,10]
[378813725,1755034246880,-6426.56135554,0.000215,2]
[378813728,1755034246892,-4879.20204146,0.000215,2]
[378813732,1755034246919,-1682.54464199,0.000215,2]
[378813734,1755034246929,-38622.81724207,0.000215,2]
[378816554,1755034772893,3092.32419446,0.00023,30]
[378816755,1755035432204,184.822819,0.00013699,2]
[378816792,1755035432540,-300.0,0.00018613,2]
[378816794,1755035432550,-129.82180201,0.00018613,2]
[378816796,1755035432562,-170.17819799,0.00018613,2]
[378816797,1755035432573,-300.0,0.00018613,2]
[378816798,1755035432582,-300.0,0.00018613,2]
[378816799,1755035432592,-300.0,0.00018613,2]
[378816800,1755035432602,-1200.0,0.00018613,2]
[378816802,1755035432611,-24900.0,0.00018614,2]
[378816804,1755035432623,-211.2489854,0.00018622,2]
[378816806,1755035432632,-183.079199,0.00018813,2]
[378816807,1755035432642,-5000.0,0.00019178,2]
[378816808,1755035432651,-666.0,0.00019178,2]
[378816809,1755035432660,-5000.0,0.00019287,2]
[378816812,1755035432670,-200.0,0.00019561,15]
[378816815,1755035432679,-200.0,0.00019561,15]
[378816817,1755035432689,-200.0,0.00019561,15]
[378816820,1755035432699,-200.0,0.00019561,15]
[378816822,1755035432708,-156.0,0.00019827,2]
[378816826,1755035432718,-800.366202,0.00019863,2]
[378816828,1755035432728,-930.5901186,0.00019873,2]
[378816830,1755035432737,-225.80166929,0.00019899,2]
[378816831,1755035432747,-475.52192787,0.00019899,2]
[378816832,1755035432756,-49755.50152409,0.000199,2]
[378816833,1755035432765,-645.66,0.00019903,3]
[378816835,1755035432775,-322.83,0.00019903,3]
[378816836,1755035432785,-161.42,0.00019903,3]
[378816838,1755035432794,-484.27,0.00019903,3]
[378816839,1755035432804,-92218.05203023,0.00019913,2]
[378816840,1755035432813,-500.0,0.00019973,2]
[378816841,1755035432823,-500.0,0.00019973,2]
[378816842,1755035432832,-500.0,0.00019973,2]
[378816843,1755035432842,-500.0,0.00019973,2]
[378816844,1755035432852,-500.0,0.00019973,2]
[378816845,1755035432861,-500.0,0.00019973,2]
[378816846,1755035432871,-500.0,0.00019973,2]
[378816847,1755035432881,-500.0,0.00019973,2]
[378816848,1755035432890,-500.0,0.00019973,2]
[378816849,1755035432900,-500.0,0.00019973,2]
[378816850,1755035432909,-500.0,0.00019973,2]
[378816851,1755035432920,-500.0,0.00019973,2]
[378816852,1755035432929,-500.0,0.00019973,2]
[378816853,1755035432938,-225.87216871,0.00019973,2]
[378816854,1755035432948,-505.1922163,0.00019973,2]
[378816855,1755035432957,-500.0,0.00019973,2]
[378816856,1755035432966,-451.66015152,0.00019973,2]
[378816857,1755035432975,-500.0,0.00019973,2]
[378816858,1755035432985,-500.0,0.00019973,2]
[378816859,1755035432997,-209.01178275,0.00019973,2]
[378816860,1755035433006,-500.0,0.00019973,2]
[378816861,1755035433016,-500.0,0.00019973,2]
[378816862,1755035433024,-438.73923644,0.00019973,2]
[378816863,1755035433169,-61.26076356,0.00019973,2]
[378816864,1755035433180,-500.0,0.00019973,2]
[378816865,1755035433190,-500.0,0.00019973,2]
[378816866,1755035433200,-323.96967114,0.00019973,2]
[378816867,1755035433217,-176.03032886,0.00019973,2]
[378816868,1755035433227,-500.0,0.00019973,2]
[378816869,1755035433236,-179.50718201,0.00019973,2]
[378816890,1755035438474,-320.49281799,0.00019973,2]
[378816891,1755035438484,-1187.2339199,0.0002,15]
[378816892,1755035438493,-872.3888457,0.0002,2]
[378816893,1755035438502,-160.0,0.0002,3]
[378816894,1755035438513,-184.822819,0.00020187,2]
[378816895,1755035438522,-500.0,0.00020247,2]
[378816896,1755035438532,-420.0,0.00020296,2]
[378816897,1755035438542,-214.0,0.00020296,2]
[378816898,1755035438551,-930.59011859,0.0002038,2]
[378816899,1755035438560,-1680.0,0.00020395,2]
[378816900,1755035438569,-284.22417541,0.0002052,2]
[378816901,1755035438578,-500.0,0.00020521,2]
[378816902,1755035438587,-500.0,0.00020521,2]
[378816903,1755035438596,-500.0,0.00020521,2]
[378816904,1755035438605,-1000.0,0.00020521,2]
[378816905,1755035438614,-500.0,0.00020521,2]
[378816906,1755035438623,-500.0,0.00020521,2]
[378816908,1755035438632,-500.0,0.00020521,2]
[378816909,1755035438642,-1000.0,0.00020521,2]
[378816910,1755035438651,-500.0,0.00020521,2]
[378816911,1755035438660,-500.0,0.00020521,2]
[378816912,1755035438669,-500.0,0.00020521,2]
[378816913,1755035438678,-1000.0,0.00020521,2]
[378816914,1755035438687,-348.69065731,0.00020521,2]
[378816915,1755035438697,-500.0,0.00020521,2]
[378816916,1755035438706,-500.0,0.00020521,2]
[378816917,1755035438715,-537.49624507,0.00020521,2]
[378816918,1755035438724,-1000.0,0.00020521,2]
[378816919,1755035438733,-500.0,0.00020521,2]
[378816920,1755035438743,-662.04051265,0.00020521,2]
[378816921,1755035438755,-337.95948735,0.00020521,2]
[378816922,1755035438764,-1000.0,0.00020521,2]
[378816923,1755035438773,-1629.36530984,0.00020547,2]
[378816924,1755035438785,-2039.84469016,0.00020547,2]
[378816925,1755035438794,-156.0,0.00020672,2]
[378816926,1755035438803,-616.23048361,0.00020795,2]
[378816927,1755035438815,-300.0,0.00020825,2]
[378816928,1755035438824,-160.0,0.00020827,2]
[378816929,1755035438834,-417.15472785,0.00020827,2]
[378816930,1755035438843,-843.25559725,0.00020827,2]
[378816931,1755035438852,-160.0,0.00020827,2]
[378816932,1755035438861,-160.0,0.00020827,2]
[378816933,1755035438871,-160.0,0.00020827,2]
[378816934,1755035438881,-160.0,0.00020827,2]
[378816935,1755035438891,-160.0,0.00020827,2]
[378816936,1755035438901,-160.0,0.00020827,2]
[378816937,1755035438910,-232.0176383,0.00020827,2]
[378816939,1755035438920,-461.76100612,0.00020827,2]
[378816941,1755035438930,-930.59011859,0.00020887,2]
[378816942,1755035438939,-695.0,0.00020898,2]
[378816944,1755035438949,-1079.0,0.00020898,2]
[378816945,1755035438959,-151.0,0.00020898,2]
[378816946,1755035438968,-151.0,0.00020898,2]
[378816948,1755035438978,-151.0,0.00020898,2]
[378816949,1755035438987,-151.0,0.00020898,2]
[378816950,1755035439172,-151.0,0.00020898,2]
[378816951,1755035439182,-151.0,0.00020898,2]
[378816952,1755035439191,-151.0,0.00020898,2]
[378816953,1755035439203,-151.0,0.00020899,2]
[378816954,1755035439214,-151.0,0.00020899,2]
[378816955,1755035439223,-130.67096153,0.00020899,2]
[378816976,1755035443535,-34.537022,0.00020899,2]
[378816978,1755035443545,-151.0,0.00020899,2]
[378816980,1755035443554,-281.31197946,0.00020899,2]
[378816982,1755035443563,-151.0,0.00020899,2]
[378816984,1755035443572,-151.0,0.00020899,2]
[378816986,1755035443581,-151.0,0.00020899,2]
[378816987,1755035443590,-333.48136048,0.000209,2]
[378817002,1755035443714,-1123.74784919,0.000209,2]
[378817004,1755035443724,-12880.93409479,0.0002099,2]
[378817006,1755035443733,-12673.43806534,0.00021012,2]
[378817008,1755035443743,-1500.0,0.00021068,2]
[378817010,1755035443752,-1500.0,0.00021068,2]
[378817012,1755035443762,-1500.0,0.00021068,2]
[378817014,1755035443771,-1400.24891133,0.00021068,2]
[378817016,1755035443781,-1500.0,0.00021068,2]
[378817017,1755035443790,-528.03329096,0.00021097,2]
[378817020,1755035443800,-160.0,0.00021098,2]
[378817021,1755035443810,-160.0,0.00021098,2]
[378817024,1755035443820,-160.0,0.00021098,2]
[378817025,1755035443841,-215.52532928,0.00021098,2]
[378817027,1755035443851,-216.70963917,0.00021098,2]
[378817030,1755035443861,-695.0,0.00021172,2]
[378817032,1755035443871,-1079.0,0.00021172,2]
[378817034,1755035443880,-294.08646877,0.00021172,2]
[378817036,1755035443891,-204.71729665,0.00021172,2]
[378817038,1755035443901,-151.0,0.00021172,2]
[378817040,1755035443911,-151.0,0.00021172,2]
[378817041,1755035443920,-218.11712398,0.00021173,2]
[378817043,1755035443930,-151.0,0.00021173,2]
[378817045,1755035443939,-1291.32,0.00021273,3]
[378817046,1755035443949,-645.66,0.00021273,3]
[378817048,1755035443958,-322.84,0.00021273,3]
[378817049,1755035443967,-4275.83453573,0.00021278,7]
[378817052,1755035443977,-12363.78966035,0.00021373,2]
[378817054,1755035443987,-930.59011859,0.00021393,2]
[378817056,1755035443998,-20254.99684151,0.000214,3]
[378817057,1755035444007,-215.52532928,0.000214,3]
[378817060,1755035444018,-160.0,0.000214,3]
[378817062,1755035444027,-461.76100612,0.000214,3]
[378817064,1755035444036,-528.03329096,0.000214,3]
[378817066,1755035444046,-160.0,0.0002141,2]
[378817068,1755035444055,-695.0,0.00021446,2]
[378817070,1755035444065,-1079.0,0.00021446,2]
[378817072,1755035444075,-198.0,0.00021446,2]
[378817074,1755035444085,-198.0,0.00021446,2]
[378817076,1755035444095,-500.0,0.00021473,2]
[378817078,1755035444104,-500.0,0.00021473,2]
[378817080,1755035444113,-500.0,0.00021473,2]
[378817082,1755035444122,-500.0,0.00021473,2]
[378817084,1755035444131,-500.0,0.00021473,2]
[378817086,1755035444140,-500.0,0.00021473,2]
[378817088,1755035444150,-500.0,0.00021473,2]
[378817090,1755035444161,-500.0,0.00021473,2]
[378817092,1755035444170,-500.0,0.00021473,2]
[378817094,1755035444179,-500.0,0.00021473,2]
[378817096,1755035444188,-500.0,0.00021473,2]
[378817098,1755035444197,-500.0,0.00021473,2]
[378817100,1755035444206,-500.0,0.00021473,2]
[378817102,1755035444216,-500.0,0.00021473,2]
[378817104,1755035444226,-500.0,0.00021473,2]
[378817106,1755035444235,-435.17563623,0.00021473,2]
[378817108,1755035444245,-173.33828355,0.00021473,2]
[378817110,1755035444254,-500.0,0.00021473,2]
[378817112,1755035444263,-500.0,0.00021473,2]
[378817114,1755035444272,-500.0,0.00021473,2]
[378817116,1755035444281,-500.0,0.00021473,2]
[378817118,1755035444290,-500.0,0.00021473,2]
[378817120,1755035444299,-503.67486532,0.00021473,2]
[378817122,1755035444308,-500.0,0.00021473,2]
[378817124,1755035444318,-500.0,0.00021473,2]
[378817126,1755035444327,-500.0,0.00021473,2]
[378817128,1755035444336,-500.0,0.00021473,2]
[378817130,1755035444345,-500.0,0.00021473,2]
[378817132,1755035444355,-500.0,0.00021473,2]
[378817134,1755035444364,-500.0,0.00021473,2]
[378817136,1755035444373,-500.0,0.00021473,2]
[378817138,1755035444382,-500.0,0.00021473,2]
[378817140,1755035444391,-500.0,0.00021473,2]
[378817142,1755035444400,-500.0,0.00021473,2]
[378817144,1755035444409,-500.0,0.00021473,2]
[378817146,1755035444419,-500.0,0.00021473,2]
[378817148,1755035444428,-500.0,0.00021473,2]
[378817150,1755035444438,-500.0,0.00021473,2]
[378817152,1755035444447,-500.0,0.00021473,2]
[378817154,1755035444456,-500.0,0.00021473,2]
[378817156,1755035444466,-500.0,0.00021473,2]
[378817158,1755035444475,-500.0,0.00021473,2]
[378817160,1755035444484,-500.0,0.00021473,2]
[378817162,1755035444493,-500.0,0.00021473,2]
[378817164,1755035444502,-500.0,0.00021473,2]
[378817165,1755035444511,-500.0,0.00021473,2]
[378817167,1755035444521,-500.0,0.00021473,2]
[378817169,1755035444530,-500.0,0.00021473,2]
[378817171,1755035444539,-500.0,0.00021473,2]
[378817173,1755035444549,-500.0,0.00021473,2]
[378817175,1755035444558,-500.0,0.00021473,2]
[378817176,1755035444567,-500.0,0.00021473,2]
[378817178,1755035444576,-200.0,0.00021479,15]
[378817180,1755035444586,-200.0,0.00021479,15]
[378817182,1755035444596,-200.0,0.00021479,15]
[378817184,1755035444605,-200.0,0.00021479,15]
[378817186,1755035444614,-320.0,0.00021479,15]
[378817188,1755035444624,-275227.04275793,0.000215,2]
[378817190,1755035444633,-1406.16,0.000215,2]
[378817192,1755035444642,-66429.91,0.000215,2]
[378817194,1755035444652,-156.0,0.00021518,2]
[378817196,1755035444661,-151.0,0.000216,3]
[378817198,1755035444670,-2000.0,0.00021616,2]
[378817200,1755035444680,-2000.0,0.00021616,2]
[378817202,1755035444689,-2000.0,0.00021616,2]
[378817204,1755035444698,-896.27105316,0.00021616,2]
[378817207,1755035444720,-387.67013468,0.00021616,2]
[378820056,1755036491645,166.340537,0.00013699,2]
[378820130,1755036632975,-837.61276329,0.000189,2]
[378820134,1755036633009,-133.87337649,0.000189,2]
[378820138,1755036633019,-300.0,0.00019041,2]
[378820139,1755036633029,-395.0,0.00019041,2]
[378820141,1755036633038,-39.53133911,0.00019042,2]
[378820193,1755036638674,-569.09914428,0.00019042,2]
[378820195,1755036638686,-6570.51248913,0.00019042,2]
[378820209,1755036640804,-17720.85702748,0.00019042,2]
[378820210,1755036640814,-200.0,0.00019422,15]
[378820211,1755036640823,-200.0,0.00019422,15]
[378820212,1755036640833,-200.0,0.00019422,15]
[378820213,1755036640842,-200.0,0.00019422,15]
[378820214,1755036640851,-640.292961,0.00019863,2]
[378820215,1755036640860,-442.02855035,0.00019899,2]
[378820216,1755036640869,-500.0,0.00019899,2]
[378820217,1755036640879,-500.0,0.00019899,2]
[378820218,1755036640888,-423.48531306,0.00019899,2]
[378820219,1755036640897,-47838.35424484,0.000199,2]
[378820220,1755036640906,-1158.35176562,0.000199,2]
[378820221,1755036640916,-159.9370558,0.0002,2]
[378820222,1755036640925,-166.340537,0.00020187,2]
[378820223,1755036640935,-420.0,0.00020754,2]
[378820224,1755036640944,-160.0,0.00020859,2]
[378820225,1755036640953,-215.52532928,0.00020859,2]
[378820226,1755036640962,-216.70963917,0.00020859,2]
[378820227,1755036640972,-899.43480355,0.00020859,2]
[378820281,1755036644120,-250.0,0.00020754,2]
[378820282,1755036644129,-2043.9,0.00020859,2]
[378820284,1755036644141,-9730.10326179,0.00020859,2]
[378820285,1755036644151,-528.03329096,0.00020859,2]
[378820286,1755036644161,-160.0,0.00020859,2]
[378820288,1755036644171,-417.15472785,0.00020862,2]
[378820290,1755036644180,-160.0,0.00020862,2]
[378820293,1755036644190,-843.25559725,0.00020862,2]
[378820295,1755036644199,-160.0,0.00020862,2]
[378820297,1755036644208,-160.0,0.00020862,2]
[378820299,1755036644218,-232.0176383,0.00020862,2]